fUST/lending_fUST_20260205
["ID","MTS","AMOUNT","RATE_DAILY","PERIOD"]
[404575735,1770306649489,-500.0,0.0005589,120]
[404575736,1770306649504,-500.0,0.0005589,120]
[404575737,1770306649514,-500.0,0.0005589,120]
[404575738,1770306649523,-500.0,0.0005589,120]
[404575739,1770306649534,-521.81168303,0.0005589,120]
[404575740,1770306649543,-500.0,0.0005589,120]
[404575741,1770306649555,-1097.9380265,0.0005589,120]
[404575742,1770306649565,-222.04168486,0.0005589,120]
[404575743,1770306649575,-500.0,0.0005589,120]
[404575744,1770306649585,-500.0,0.0005589,120]
[404575745,1770306649595,-2746.19,0.0005589,90]
[404575746,1770306649604,-679.63,0.0005589,120]
[404575747,1770306649613,-635.34058013,0.0005589,120]
[404575748,1770306649624,-500.0,0.0005589,120]
[404575749,1770306649634,-500.0,0.0005589,120]
[404575750,1770306649643,-500.0,0.0005589,120]
[404575751,1770306649653,-367.58181512,0.00055953,30]
[404575752,1770306649662,-10016.32056482,0.00055953,30]
[404575753,1770306649671,-14683.04,0.00056,14]
[404575754,1770306649681,-67290.37,0.00056001,15]
[404575755,1770306649691,-460.26,0.00056301,120]
[404575756,1770306649701,-500.0,0.00056438,120]
[404575757,1770306649710,-1617.56,0.00056438,120]
[404575758,1770306649720,-5198.83,0.00056438,120]
[404575759,1770306649729,-4982.22,0.00056438,120]
[404575760,1770306649739,-500.0,0.00056438,120]
[404575761,1770306649755,-1175.1,0.00056438,120]
[404575762,1770306649765,-627.82629265,0.00056438,120]
[404575763,1770306649775,-500.0,0.00056438,120]
[404575764,1770306649881,-897.6530322,0.00056438,2]
[404575765,1770306649891,-500.0,0.00056438,120]
[404575766,1770306649901,-500.0,0.00056438,120]
[404575767,1770306649911,-500.0,0.00056438,120]
[404575768,1770306649920,-1060.22,0.00056438,2]
[404575769,1770306649930,-500.0,0.00056438,120]
[404575770,1770306649940,-500.0,0.00056438,120]
[404575771,1770306649949,-500.0,0.00056438,120]
[404575772,1770306649959,-293.51,0.00056438,120]
[404575773,1770306649969,-500.0,0.00056438,120]
[404575774,1770306649978,-500.0,0.00056438,120]
[404575775,1770306649988,-500.0,0.00056438,120]
[404575776,1770306650002,-500.0,0.00056438,120]
[404575777,1770306650011,-600.0,0.00056438,2]
[404575778,1770306650020,-500.0,0.00056438,120]
[404575779,1770306650030,-752.68,0.00056438,120]
[404575780,1770306650039,-500.0,0.00056438,120]
[404575781,1770306650049,-500.0,0.00056438,120]
[404575782,1770306650059,-500.0,0.00056438,120]
[404575783,1770306650070,-501.06103425,0.00056438,120]
[404575784,1770306650079,-500.0,0.00056438,120]
[404575785,1770306650089,-500.0,0.00056438,120]
[404575786,1770306650101,-500.0,0.00056438,120]
[404575787,1770306650110,-500.0,0.00056438,60]
[404575788,1770306650120,-500.0,0.00056438,54]
[404575789,1770306650130,-500.0,0.00056438,120]
[404575790,1770306650140,-1000.0,0.00056438,120]
[404575791,1770306650149,-500.0,0.00056438,120]
[404575792,1770306650160,-662.47,0.00056438,120]
[404575793,1770306650170,-839.11,0.00056438,120]
[404575794,1770306650180,-600.98,0.00056438,120]
[404575795,1770306650190,-500.0,0.00056438,120]
[404575796,1770306650199,-500.0,0.00056438,120]
[404575797,1770306650209,-500.0,0.00056438,120]
[404575798,1770306650219,-500.0,0.00056438,120]
[404575799,1770306650228,-500.0,0.00056438,120]
[404575800,1770306650238,-500.0,0.00056438,120]
[404575801,1770306650255,-807.12,0.00056438,120]
[404575802,1770306650264,-500.0,0.00056438,120]
[404575803,1770306650274,-881.56,0.00056438,30]
[404575804,1770306650284,-647.19,0.00056438,120]
[404575805,1770306650293,-923.12,0.00056438,7]
[404575806,1770306650303,-500.0,0.00056438,120]
[404575807,1770306650313,-500.0,0.00056438,120]
[404575808,1770306650322,-500.0,0.00056438,120]
[404575809,1770306650331,-1813.44,0.00056438,120]
[404575811,1770306650341,-500.0,0.00056438,120]
[404575812,1770306650351,-1927.38,0.00056438,120]
[404575813,1770306650361,-1199.31,0.00056438,120]
[404575814,1770306650370,-500.0,0.00056438,120]
[404575815,1770306650380,-500.0,0.00056438,120]
[404575816,1770306650395,-500.0,0.00056438,120]
[404575817,1770306650406,-2829.49,0.00056438,120]
[404575818,1770306650415,-500.0,0.00056438,120]
[404575819,1770306650425,-2156.07,0.00056438,30]
[404575820,1770306650434,-808.76,0.00056438,120]
[404575821,1770306650443,-60326.63,0.00056438,14]
[404575822,1770306650452,-604.07,0.00056438,14]
[404575823,1770306650461,-1438.12,0.00056438,120]
[404575824,1770306650470,-664.48,0.00056438,120]
[404575825,1770306650479,-500.0,0.00056438,21]
[404575826,1770306650489,-500.0,0.00056438,120]
[404575827,1770306650505,-2562.29,0.00056438,120]
[404575828,1770306650514,-1581.83,0.00056438,120]
[404575829,1770306650523,-500.0,0.00056438,120]
[404575830,1770306650533,-1107.05,0.00056438,120]
[404575831,1770306650546,-500.0,0.00056438,120]
[404575832,1770306650555,-1409.41,0.00056438,120]
[404575833,1770306650564,-1484.47,0.00056438,120]
[404575834,1770306650575,-519.42,0.00056438,120]
[404575835,1770306650584,-773.92,0.00056438,120]
[404575836,1770306650593,-500.0,0.00056438,120]
[404575837,1770306650603,-762.71,0.00056438,120]
[404575838,1770306650614,-500.0,0.00056438,120]
[404575839,1770306650623,-1569.94,0.00056438,120]
[404575840,1770306650632,-575.00000038,0.00056438,120]
[404575841,1770306650642,-500.0,0.00056438,120]
[404575842,1770306650651,-500.0,0.00056438,120]
[404575843,1770306650660,-500.0,0.00056438,120]
[404575844,1770306650670,-500.0,0.00056438,120]
[404575845,1770306650679,-500.0,0.00056438,120]
[404575846,1770306650688,-2746.19,0.00056438,90]
[404575847,1770306650697,-679.63,0.00056438,120]
[404575848,1770306650706,-575.54,0.00056438,120]
[404575849,1770306650716,-500.0,0.00056438,120]
[404575850,1770306650725,-500.0,0.00056438,120]
[404575851,1770306650734,-114063.75,0.00056686,15]
[404575852,1770306650748,-10660.02388174,0.00056886,2]
[404575853,1770306650757,-527.49954965,0.00056986,120]
[404575854,1770306650766,-1617.56,0.00056986,120]
[404575855,1770306650775,-5198.83,0.00056986,120]
[404575856,1770306650784,-4982.22,0.00056986,120]
[404575857,1770306650793,-500.0,0.00056986,120]
[404575858,1770306650814,-1175.1,0.00056986,120]
[404575859,1770306650824,-500.0,0.00056986,120]
[404575860,1770306650834,-500.0,0.00056986,120]
[404575861,1770306650843,-500.0,0.00056986,120]
[404575862,1770306650853,-500.0,0.00056986,120]
[404575863,1770306650863,-1060.22,0.00056986,2]
[404575864,1770306650873,-500.0,0.00056986,120]
[404575865,1770306650883,-500.0,0.00056986,120]
[404575866,1770306650893,-500.0,0.00056986,120]
[404575867,1770306650902,-293.51,0.00056986,120]
[404575868,1770306650912,-500.0,0.00056986,120]
[404575869,1770306650921,-500.0,0.00056986,120]
[404575870,1770306650931,-500.0,0.00056986,120]
[404575871,1770306650940,-500.0,0.00056986,120]
[404575872,1770306650950,-400.0,0.00056986,2]
[404575873,1770306650959,-500.0,0.00056986,120]
[404575874,1770306650968,-752.68,0.00056986,120]
[404575875,1770306650979,-500.0,0.00056986,120]
[404575876,1770306650988,-500.0,0.00056986,120]
[404575877,1770306651004,-500.0,0.00056986,120]
[404575878,1770306651018,-500.0,0.00056986,120]
[404575879,1770306651028,-500.0,0.00056986,120]
[404575880,1770306651037,-500.0,0.00056986,120]
[404575881,1770306651047,-500.0,0.00056986,60]
[404575882,1770306651057,-500.0,0.00056986,54]
[404575883,1770306651067,-500.0,0.00056986,120]
[404575884,1770306651076,-1000.0,0.00056986,120]
[404575885,1770306651086,-647.00000085,0.00056986,120]
[404575886,1770306651096,-662.47,0.00056986,120]
[404575887,1770306651106,-839.11,0.00056986,120]
[404575888,1770306651115,-600.98,0.00056986,120]
[404575889,1770306651125,-500.0,0.00056986,120]
[404575890,1770306651135,-500.0,0.00056986,120]
[404575891,1770306651145,-500.0,0.00056986,120]
[404575892,1770306651155,-500.0,0.00056986,120]
[404575893,1770306651164,-500.0,0.00056986,120]
[404575894,1770306651174,-549.58008762,0.00056986,120]
[404575895,1770306651184,-807.12,0.00056986,120]
[404575896,1770306651194,-500.0,0.00056986,120]
[404575897,1770306651204,-881.56,0.00056986,30]
[404575898,1770306651214,-647.19,0.00056986,120]
[404575899,1770306651225,-923.12,0.00056986,7]
[404575900,1770306651235,-500.0,0.00056986,120]
[404575901,1770306651250,-500.0,0.00056986,120]
[404575902,1770306651260,-500.0,0.00056986,120]
[404575903,1770306651270,-1813.44,0.00056986,120]
[404575904,1770306651280,-500.0,0.00056986,120]
[404575905,1770306651290,-1927.38,0.00056986,120]
[404575906,1770306651300,-1199.31,0.00056986,120]
[404575907,1770306651310,-569.42229263,0.00056986,120]
[404575908,1770306651324,-500.0,0.00056986,120]
[404575909,1770306651334,-500.0,0.00056986,120]
[404575910,1770306651344,-460.26,0.00056986,120]
[404575911,1770306651355,-2829.49,0.00056986,120]
[404575912,1770306651365,-473.99717363,0.00056986,120]
[404575913,1770306651375,-2156.07,0.00056986,30]
[404575914,1770306651386,-808.76,0.00056986,120]
[404575915,1770306651396,-60326.63,0.00056986,14]
[404575916,1770306651407,-604.07,0.00056986,14]
[404575917,1770306651417,-1438.12,0.00056986,120]
[404575918,1770306651427,-664.48,0.00056986,120]
[404575919,1770306651436,-500.0,0.00056986,21]
[404575920,1770306651446,-500.0,0.00056986,120]
[404575921,1770306651457,-2562.29,0.00056986,120]
[404575922,1770306651467,-1581.83,0.00056986,120]
[404575923,1770306651477,-500.0,0.00056986,120]
[404575924,1770306651487,-1107.05,0.00056986,120]
[404575925,1770306651503,-500.0,0.00056986,120]
[404575926,1770306651513,-1409.41,0.00056986,120]
[404575927,1770306651522,-1484.47,0.00056986,120]
[404575928,1770306651532,-519.42,0.00056986,120]
[404575929,1770306651542,-773.92,0.00056986,120]
[404575930,1770306651553,-762.71,0.00056986,120]
[404575931,1770306651563,-500.0,0.00056986,120]
[404575932,1770306651572,-1569.94,0.00056986,120]
[404575933,1770306651583,-500.0,0.00056986,120]
[404575934,1770306651593,-501.17121242,0.00056986,120]
[404575935,1770306651602,-227.74954396,0.00056986,120]
[404575936,1770306651611,-500.0,0.00056986,120]
[404575937,1770306651622,-500.0,0.00056986,120]
[404575938,1770306651632,-2746.19,0.00056986,90]
[404575939,1770306651642,-679.63,0.00056986,120]
[404575940,1770306651652,-500.0,0.00056986,120]
[404575941,1770306651661,-500.0,0.00056986,120]
[404575942,1770306651674,-432.01,0.00057,30]
[404575943,1770306651684,-26923.4733916,0.00057003,2]
[404575944,1770306651693,-152.0,0.000572,120]
[404575945,1770306651703,-1036.738899,0.00057465,2]
[404575946,1770306651713,-1617.56,0.00057534,120]
[404575947,1770306651723,-5198.83,0.00057534,120]
[404575948,1770306651733,-4982.22,0.00057534,120]
[404575949,1770306651746,-500.0,0.00057534,120]
[404575950,1770306651756,-1175.1,0.00057534,120]
[404575951,1770306651766,-500.0,0.00057534,120]
[404575952,1770306651776,-500.0,0.00057534,120]
[404575953,1770306651785,-500.0,0.00057534,120]
[404575954,1770306651795,-500.0,0.00057534,120]
[404575955,1770306651804,-1060.22,0.00057534,2]
[404575956,1770306651814,-500.0,0.00057534,120]
[404575957,1770306651824,-266.5921342,0.00057534,120]
[404575958,1770306651834,-500.0,0.00057534,120]
[404575959,1770306651844,-293.51,0.00057534,120]
[404575960,1770306651854,-500.0,0.00057534,120]
[404575961,1770306651864,-500.0,0.00057534,120]
[404575962,1770306651874,-500.0,0.00057534,120]
[404575963,1770306651884,-500.0,0.00057534,120]
[404575964,1770306651894,-500.0,0.00057534,120]
[404575965,1770306651904,-752.68,0.00057534,120]
[404575966,1770306651914,-500.0,0.00057534,120]
[404575967,1770306651923,-500.0,0.00057534,120]
[404575968,1770306651934,-500.0,0.00057534,120]
[404575969,1770306651943,-500.0,0.00057534,120]
[404575970,1770306651953,-500.0,0.00057534,120]
[404575971,1770306651963,-444.71303517,0.00057534,60]
[404575972,1770306652106,-500.0,0.00057534,54]
[404575973,1770306652117,-500.0,0.00057534,120]
[404575974,1770306652126,-1000.0,0.00057534,120]
[404575975,1770306652136,-662.47,0.00057534,120]
[404575976,1770306652145,-839.11,0.00057534,120]
[404575977,1770306652155,-600.98,0.00057534,120]
[404575978,1770306652164,-500.0,0.00057534,120]
[404575979,1770306652174,-500.0,0.00057534,120]
[404575980,1770306652184,-500.0,0.00057534,120]
[404575981,1770306652194,-500.0,0.00057534,120]
[404575982,1770306652204,-500.0,0.00057534,120]
[404575983,1770306652213,-807.12,0.00057534,120]
[404575984,1770306652223,-500.0,0.00057534,120]
[404575985,1770306652232,-881.56,0.00057534,30]
[404575986,1770306652244,-647.19,0.00057534,120]
[404575987,1770306652254,-923.12,0.00057534,7]
[404575988,1770306652264,-500.0,0.00057534,120]
[404575989,1770306652274,-500.0,0.00057534,120]
[404575990,1770306652284,-225.03433224,0.00057534,120]
[404575991,1770306652293,-1813.44,0.00057534,120]
[404575992,1770306652303,-500.0,0.00057534,120]
[404575993,1770306652313,-1927.38,0.00057534,120]
[404575994,1770306652322,-1199.31,0.00057534,120]
[404575995,1770306652332,-500.0,0.00057534,120]
[404575996,1770306652342,-500.0,0.00057534,120]
[404575997,1770306652351,-2829.49,0.00057534,120]
[404575998,1770306652360,-2156.07,0.00057534,30]
[404575999,1770306652370,-808.76,0.00057534,120]
[404576000,1770306652379,-60326.63,0.00057534,14]
[404576001,1770306652389,-604.07,0.00057534,14]
[404576002,1770306652398,-1438.12,0.00057534,120]
[404576003,1770306652407,-664.48,0.00057534,120]
[404576004,1770306652417,-500.0,0.00057534,21]
[404576005,1770306652427,-510.4335353,0.00057534,120]
[404576006,1770306652436,-2562.29,0.00057534,120]
[404576007,1770306652446,-1581.83,0.00057534,120]
[404576008,1770306652456,-161.94852293,0.00057534,120]
[404576009,1770306652465,-1107.05,0.00057534,120]
[404576010,1770306652475,-1409.41,0.00057534,120]
[404576011,1770306652484,-1484.47,0.00057534,120]
[404576012,1770306652496,-519.42,0.00057534,120]
[404576013,1770306652506,-773.92,0.00057534,120]
[404576014,1770306652515,-762.71,0.00057534,120]
[404576015,1770306652524,-431.08228599,0.00057534,120]
[404576016,1770306652534,-1569.94,0.00057534,120]
[404576017,1770306652545,-500.0,0.00057534,120]
[404576018,1770306652557,-566.52154737,0.00057534,120]
[404576019,1770306652567,-500.0,0.00057534,120]
[404576020,1770306652577,-2746.19,0.00057534,90]
[404576021,1770306652587,-679.63,0.00057534,120]
[404576022,1770306652597,-500.0,0.00057534,120]
[404576023,1770306652606,-500.0,0.00057534,120]
[404576024,1770306652615,-460.26,0.00057671,120]
[404576025,1770306652624,-50791.79194958,0.00058,90]
[404576026,1770306652634,-25000.0,0.00058,120]
[404576027,1770306652643,-1617.56,0.00058082,120]
[404576028,1770306652653,-5198.83,0.00058082,120]
[404576029,1770306652663,-4982.22,0.00058082,120]
[404576030,1770306652672,-500.0,0.00058082,120]
[404576031,1770306652681,-1175.1,0.00058082,120]
[404576032,1770306652691,-500.0,0.00058082,120]
[404576033,1770306652700,-500.0,0.00058082,120]
[404576034,1770306652709,-500.0,0.00058082,120]
[404576035,1770306652718,-500.0,0.00058082,120]
[404576036,1770306652728,-1060.22,0.00058082,2]
[404576037,1770306652737,-636.76759708,0.00058082,120]
[404576038,1770306652749,-500.0,0.00058082,120]
[404576039,1770306652758,-293.51,0.00058082,120]
[404576040,1770306652768,-500.0,0.00058082,120]
[404576041,1770306652777,-571.53124556,0.00058082,120]
[404576042,1770306652787,-500.0,0.00058082,120]
[404576043,1770306652796,-500.0,0.00058082,120]
[404576044,1770306652806,-752.68,0.00058082,120]
[404576045,1770306652815,-610.48273823,0.00058082,120]
[404576046,1770306652824,-500.0,0.00058082,120]
[404576047,1770306652833,-500.0,0.00058082,120]
[404576048,1770306652843,-500.0,0.00058082,120]
[404576049,1770306652852,-500.0,0.00058082,120]
[404576050,1770306652861,-500.0,0.00058082,120]
[404576051,1770306652870,-500.0,0.00058082,54]
[404576052,1770306652879,-500.0,0.00058082,120]
[404576053,1770306652889,-1000.0,0.00058082,120]
[404576054,1770306652899,-662.47,0.00058082,120]
[404576055,1770306652908,-839.11,0.00058082,120]
[404576056,1770306652918,-600.98,0.00058082,120]
[404576057,1770306652927,-500.0,0.00058082,120]
[404576058,1770306652936,-500.0,0.00058082,120]
[404576059,1770306652945,-500.0,0.00058082,120]
[404576060,1770306652955,-500.0,0.00058082,120]
[404576061,1770306652964,-500.0,0.00058082,120]
[404576062,1770306652974,-807.12,0.00058082,120]
[404576063,1770306652983,-500.0,0.00058082,120]
[404576064,1770306652992,-881.56,0.00058082,30]
[404576065,1770306653008,-647.19,0.00058082,120]
[404576066,1770306653019,-923.12,0.00058082,7]
[404576067,1770306653029,-500.0,0.00058082,120]
[404576068,1770306653040,-500.0,0.00058082,120]
[404576069,1770306653051,-1813.44,0.00058082,120]
[404576070,1770306653062,-500.0,0.00058082,120]
[404576071,1770306653073,-1927.38,0.00058082,120]
[404576072,1770306653083,-1199.31,0.00058082,120]
[404576073,1770306653094,-500.0,0.00058082,120]
[404576074,1770306653104,-500.0,0.00058082,120]
[404576075,1770306653114,-2829.49,0.00058082,120]
[404576076,1770306653125,-2156.07,0.00058082,30]
[404576077,1770306653134,-808.76,0.00058082,120]
[404576078,1770306653144,-60326.63,0.00058082,14]
[404576079,1770306653154,-604.07,0.00058082,14]
[404576080,1770306653164,-1438.12,0.00058082,120]
[404576081,1770306653174,-664.48,0.00058082,120]
[404576082,1770306653184,-500.0,0.00058082,21]
[404576083,1770306653194,-2562.29,0.00058082,120]
[404576084,1770306653204,-1581.83,0.00058082,120]
[404576085,1770306653214,-1107.05,0.00058082,120]
[404576086,1770306653224,-1409.41,0.00058082,120]
[404576087,1770306653234,-1484.47,0.00058082,120]
[404576088,1770306653249,-519.42,0.00058082,120]
[404576089,1770306653259,-773.92,0.00058082,120]
[404576090,1770306653270,-762.71,0.00058082,120]
[404576091,1770306653280,-1569.94,0.00058082,120]
[404576092,1770306653289,-500.0,0.00058082,120]
[404576093,1770306653299,-500.0,0.00058082,120]
[404576094,1770306653309,-2746.19,0.00058082,90]
[404576095,1770306653319,-679.63,0.00058082,120]
[404576096,1770306653329,-500.0,0.00058082,120]
[404576097,1770306653339,-500.0,0.00058082,120]
[404576098,1770306653349,-460.26,0.00058356,120]
[404576099,1770306653359,-1100.0,0.00058455,120]
[404576100,1770306653369,-192.74033012,0.00058459,60]
[404576101,1770306653379,-1617.56,0.0005863,120]
[404576102,1770306653388,-5198.83,0.0005863,120]
[404576103,1770306653398,-4982.22,0.0005863,120]
[404576104,1770306653407,-500.0,0.0005863,120]
[404576105,1770306653416,-1175.1,0.0005863,120]
[404576106,1770306653427,-500.0715,0.0005863,120]
[404576107,1770306653437,-500.0,0.0005863,120]
[404576108,1770306653447,-504.52451878,0.0005863,120]
[404576109,1770306653456,-500.0,0.0005863,120]
[404576110,1770306653466,-1060.22,0.0005863,2]
[404576111,1770306653476,-500.0,0.0005863,120]
[404576112,1770306653486,-293.51,0.0005863,120]
[404576113,1770306653499,-500.0,0.0005863,120]
[404576114,1770306653509,-519.4407474,0.0005863,120]
[404576115,1770306653519,-500.0,0.0005863,120]
[404576116,1770306653528,-752.68,0.0005863,120]
[404576117,1770306653539,-500.0,0.0005863,120]
[404576118,1770306653548,-512.19651334,0.0005863,120]
[404576119,1770306653560,-500.0,0.0005863,120]
[404576120,1770306653570,-500.29392046,0.0005863,120]
[404576121,1770306653582,-500.0,0.0005863,120]
[404576122,1770306653592,-500.0,0.0005863,54]
[404576123,1770306653602,-500.0,0.0005863,120]
[404576124,1770306653611,-1000.0,0.0005863,120]
[404576125,1770306653620,-662.47,0.0005863,120]
[404576126,1770306653631,-839.11,0.0005863,120]
[404576127,1770306653641,-600.98,0.0005863,120]
[404576128,1770306653651,-500.0,0.0005863,120]
[404576129,1770306653660,-500.0,0.0005863,120]
[404576130,1770306653670,-500.0,0.0005863,120]
[404576131,1770306653679,-500.0,0.0005863,120]
[404576132,1770306653688,-500.0,0.0005863,120]
[404576133,1770306653698,-807.12,0.0005863,120]
[404576134,1770306653708,-500.0,0.0005863,120]
[404576135,1770306653718,-881.56,0.0005863,30]
[404576136,1770306653727,-647.19,0.0005863,120]
[404576137,1770306653736,-923.12,0.0005863,7]
[404576138,1770306653748,-515.45703989,0.0005863,120]
[404576139,1770306653758,-500.0,0.0005863,120]
[404576140,1770306653767,-1813.44,0.0005863,120]
[404576141,1770306653777,-500.0,0.0005863,120]
[404576142,1770306653787,-1927.38,0.0005863,120]
[404576143,1770306653797,-1199.31,0.0005863,120]
[404576144,1770306653807,-500.0,0.0005863,120]
[404576145,1770306653818,-500.0,0.0005863,120]
[404576146,1770306653828,-2829.49,0.0005863,120]
[404576147,1770306653838,-2156.07,0.0005863,30]
[404576148,1770306653848,-808.76,0.0005863,120]
[404576149,1770306653858,-60326.63,0.0005863,14]
[404576150,1770306653868,-604.07,0.0005863,14]
[404576151,1770306653878,-1438.12,0.0005863,120]
[404576152,1770306653887,-664.48,0.0005863,120]
[404576153,1770306653896,-500.0,0.0005863,21]
[404576154,1770306653906,-2562.29,0.0005863,120]
[404576155,1770306653916,-1581.83,0.0005863,120]
[404576156,1770306653926,-1107.05,0.0005863,120]
[404576157,1770306653935,-1409.41,0.0005863,120]
[404576158,1770306653945,-1484.47,0.0005863,120]
[404576159,1770306653955,-519.42,0.0005863,120]
[404576160,1770306653965,-773.92,0.0005863,120]
[404576161,1770306653975,-762.71,0.0005863,120]
[404576162,1770306654071,-1569.94,0.0005863,120]
[404576163,1770306654082,-410.71479692,0.0005863,120]
[404576164,1770306654092,-298.64691223,0.0005863,120]
[404576165,1770306654101,-2746.19,0.0005863,90]
[404576166,1770306654112,-679.63,0.0005863,120]
[404576167,1770306654122,-500.0,0.0005863,120]
[404576168,1770306654132,-500.0,0.0005863,120]
[404576169,1770306654142,-1372.0,0.00058962,120]
[404576170,1770306654152,-2157.0,0.00058962,120]
[404576171,1770306654162,-632.0,0.00058962,120]
[404576172,1770306654172,-167.0,0.00059,120]
[404576173,1770306654183,-152.0,0.00059,120]
[404576174,1770306654193,-205.0,0.00059,120]
[404576175,1770306654203,-460.26,0.00059041,120]
[404576176,1770306654214,-205.0,0.00059041,120]
[404576177,1770306654226,-1617.56,0.00059178,120]
[404576178,1770306654236,-5198.83,0.00059178,120]
[404576179,1770306654247,-4982.22,0.00059178,120]
[404576180,1770306654258,-500.0,0.00059178,120]
[404576181,1770306654268,-1175.1,0.00059178,120]
[404576182,1770306654278,-500.0,0.00059178,120]
[404576183,1770306654289,-500.0,0.00059178,120]
[404576184,1770306654299,-1060.22,0.00059178,2]
[404576185,1770306654310,-500.0,0.00059178,120]
[404576186,1770306654319,-293.51,0.00059178,120]
[404576187,1770306654328,-500.0,0.00059178,120]
[404576188,1770306654337,-500.0,0.00059178,120]
[404576189,1770306654347,-752.68,0.00059178,120]
[404576190,1770306654356,-500.0,0.00059178,120]
[404576191,1770306654366,-500.0,0.00059178,120]
[404576192,1770306654377,-500.0,0.00059178,120]
[404576193,1770306654387,-500.0,0.00059178,54]
[404576194,1770306654396,-500.0,0.00059178,120]
[404576195,1770306654407,-218.62902907,0.00059178,120]
[404576196,1770306654418,-662.47,0.00059178,120]
[404576197,1770306654428,-839.11,0.00059178,120]
[404576198,1770306654438,-600.98,0.00059178,120]
[404576199,1770306654448,-500.0,0.00059178,120]
[404576200,1770306654457,-500.0,0.00059178,120]
[404576201,1770306654467,-500.0,0.00059178,120]
[404576202,1770306654477,-500.0,0.00059178,120]
[404576203,1770306654487,-500.0,0.00059178,120]
[404576204,1770306654498,-807.12,0.00059178,120]
[404576205,1770306654508,-500.0,0.00059178,120]
[404576206,1770306654518,-881.56,0.00059178,30]
[404576207,1770306654527,-647.19,0.00059178,120]
[404576208,1770306654537,-923.12,0.00059178,7]
[404576209,1770306654547,-500.0,0.00059178,120]
[404576210,1770306654560,-1813.44,0.00059178,120]
[404576211,1770306654569,-452.00562925,0.00059178,120]
[404576212,1770306654580,-1927.38,0.00059178,120]
[404576213,1770306654590,-1199.31,0.00059178,120]
[404576214,1770306654599,-500.0,0.00059178,120]
[404576215,1770306654609,-500.0,0.00059178,120]
[404576216,1770306654620,-2829.49,0.00059178,120]
[404576217,1770306654629,-2156.07,0.00059178,30]
[404576218,1770306654639,-808.76,0.00059178,120]
[404576219,1770306654648,-60326.63,0.00059178,14]
[404576220,1770306654658,-604.07,0.00059178,14]
[404576221,1770306654667,-1438.12,0.00059178,120]
[404576222,1770306654677,-664.48,0.00059178,120]
[404576223,1770306654687,-399.7,0.00059178,21]
[404576224,1770306654697,-2562.29,0.00059178,120]
[404576225,1770306654706,-1581.83,0.00059178,120]
[404576226,1770306654715,-1107.05,0.00059178,120]
[404576227,1770306654725,-1409.41,0.00059178,120]
[404576228,1770306654735,-1484.47,0.00059178,120]
[404576229,1770306654746,-519.42,0.00059178,120]
[404576230,1770306654756,-773.92,0.00059178,120]
[404576231,1770306654766,-762.71,0.00059178,120]
[404576232,1770306654776,-1569.94,0.00059178,120]
[404576233,1770306654786,-2746.19,0.00059178,90]
[404576234,1770306654795,-679.63,0.00059178,120]
[404576235,1770306654805,-500.0,0.00059178,120]